[Event "Baku Open 2024"]
[Site "Baku"]
[Date "2024.06.30"]
[Round "2.16"]
[White "Shuvalova, Polina"]
[Black "Suleymanli, Suleyman"]
[Result "0-1"]
[ECO "C14"]
[WhiteElo "2467"]
[BlackElo "2262"]
[Annotator "TA"]
[PlyCount "68"]
[EventDate "2024.06.29"]
[EventType "swiss"]
[EventCountry "AZE"]
[SourceTitle "playchess.com"]
[Source "ChessBase"]
[SourceQuality "1"]
[TimeControl "5400+30"]

{[%evp 14,68,30,14,23,13,14,4,9,-1,10,5,28,23,31,31,30,30,30,21,50,66,47,34,45,49,45,8,43,37,53,38,43,0,0,0,0,0,0,0,0,0,0,0,0,-35,-26,-27,-21,-334,-354,-703,-704,-843,-848,-29991,-29992]} 1. e4 {[%emt 0:00:03]} e6 {[%emt 0:00:06]} 2. d4 {[%emt 0:00:06]} d5 {[%emt 0:00:05]} 3. Nc3 {[%emt 0:00:05]} Nf6 {[%emt 0:00:32]} 4. Bg5 {[%emt 0:00:11]} Be7 {[%emt 0:00:09]} 5. e5 {[%emt 0:00:11]} Nfd7 {[%emt 0:00:07]} 6. h4 {[%emt 0:00:16]} h6 {[%emt 0:00:16]} 7. Bxe7 {[%emt 0:00:07]} Qxe7 {[%emt 0:00:05]} 8. f4 {[%emt 0:02:11]} a6 {[%emt 0:01:53]} 9. Nf3 {[%emt 0:00:08]} c5 {[%emt 0:01:16]} 10. Qd2 {[%emt 0:00:31]} Nc6 {[%emt 0:00:29] The position is equal.} 11. Ne2 {[%emt 0:00:23]} b5 {[%emt 0:08:13]} 12. c3 {[%emt 0:00:24]} Nb6 {[%emt 0:01:19]} 13. dxc5 {[%emt 0:04:51]} Nc4 {[%emt 0:03:44]} 14. Qc1 {[%emt 0:02:07] b3 is the strong threat.} Qxc5 {[%emt 0:01:45]} 15. Ned4 {[%emt 0:00:30]} Nxd4 {[%emt 0:04:42]} 16. Nxd4 {[%emt 0:01:21]} O-O {[%emt 0:05:51]} 17. b3 $1 {[%emt 0:09:02]} Nb6 {[%emt 0:02:03]} 18. Qd2 {[%emt 0:06:46]} f6 {[%emt 0:06:07]} 19. exf6 {[%emt 0:15:45]} Rxf6 {[%emt 0:02:20]} 20. Be2 {[%emt 0:03:11]} Bd7 {[%emt 0:03:17][%cal Of6f4]} 21. O-O {[%emt 0:01:16]} Raf8 {[%emt 0:04:10]} 22. g3 {[%emt 0:02:57]} Nc8 {[%emt 0:04:06]} 23. Qe3 {[%emt 0:09:24]} Nd6 {[%emt 0:01:27]} 24. Rac1 {[%emt 0:13:47]} Ne4 {[%emt 0:05:45]} 25. Bd3 {[%emt 0:07:06]} Rg6 {[%emt 0:04:05]} 26. Bxe4 {[%emt 0:05:47]} dxe4 {[%emt 0:00:37]} 27. Kg2 {[%emt 0:02:48]} Bc6 {[%emt 0:07:29]} 28. c4 {[%emt 0:04:16] aiming for cxb5.} b4 {[%emt 0:02:55]} 29. Rce1 {[%emt 0:01:37] And now Nxc6 would win.} Bb7 {[%emt 0:02:45]} 30. Nc2 {[%emt 0:01:50]} Qa5 {[%emt 0:02:09][%cal Of8d8] Strongly threatening ...Rd8!} 31. Rf2 $2 {[%emt 0:01:33][%mdl 8192] [#] Loses the game.} (31. Rd1 $11) 31... Rd8 $1 $19 {[%emt 0:00:38][%cal Od8d3] ...Rd3! would now be deadly.} 32. Kh2 $2 {[%emt 0:01:16]} (32. Qa7 e3+ 33. Qxb7 exf2 34. Kxf2 Qxa2 35. h5 Rd2+ (35... Qxc2+ 36. Re2 $17) 36. Kf3) 32... Rd3 $1 {[%emt 0:02:39]} ({Weaker is} 32... Qxa2 33. Qb6 Rd7 34. Qxb4 $14) 33. Qa7 {[%emt 0:00:15]} Rdxg3 {[%emt 0:02:09]} 34. c5 {[%emt 0:03:51] [#]} Qd8 $1 {[%emt 0:00:15] Weighted Error Value: White=0.60/Black=0.05 (flawless) .  Loses game:     	White=1     	---        Mistake:       	White=1     	---        Inaccurate:     	White=3     	Black=2      OK:         	White=11    	Black=8      Best:        	---       	Black=2      Strong:       	White=1     	Black=2} 0-1

[Event "Baku Open 2024"]
[Site "Baku"]
[Date "2024.06.30"]
[Round "2.17"]
[White "Rustamov, Rustam"]
[Black "Ilamparthi A R"]
[Result "1/2-1/2"]
[ECO "C41"]
[WhiteElo "2285"]
[BlackElo "2446"]
[Annotator "TA"]
[PlyCount "101"]
[EventDate "2024.06.29"]
[EventType "swiss"]
[EventCountry "AZE"]
[SourceTitle "playchess.com"]
[Source "ChessBase"]
[SourceQuality "1"]
[TimeControl "5400+30"]

{[%evp 19,101,29,41,29,26,13,8,-9,-12,-15,0,-11,-7,-8,-5,-14,-35,-18,21,0,0,-52,-58,-58,-41,-47,-52,-50,-70,-50,-19,-29,-23,-29,-18,-24,-25,-28,-26,-22,-22,-38,-16,-22,-22,-22,-25,-22,-36,-37,-37,-37,-33,-41,-19,-45,-41,-34,-34,-34,-34,-45,-21,-23,-26,-26,-25,-24,-19,-19,-17,-17,-17,-17,-8,-8,0,-8,-8,-8,0,0,0,0]} 1. e4 {[%emt 0:00:03]} d6 {[%emt 0:04:18]} 2. d4 {[%emt 0:00:47]} Nf6 {[%emt 0:00:08]} 3. Nc3 {[%emt 0:00:14]} e5 {[%emt 0:00:06]} 4. Nf3 {[%emt 0:02:36]} Nbd7 {[%emt 0:00:11]} 5. Bc4 {[%emt 0:00:47]} Be7 {[%emt 0:00:08]} 6. O-O {[%emt 0:01:04]} O-O {[%emt 0:00:05]} 7. a4 {[%emt 0:01:45]} c6 {[%emt 0:00:11]} 8. Ba2 {[%emt 0:04:48]} h6 {[%emt 0:02:10]} 9. Re1 {[%emt 0:06:50]} Re8 {[%emt 0:00:12]} 10. h3 {[%emt 0:01:19]} a5 {[%emt 0:00:34]} 11. Be3 {[%emt 0:02:44]} exd4 {[%emt 0:00:33]} 12. Bxd4 {[%emt 0:01:24]} Nf8 $1 {[%emt 0:00:12]} 13. e5 {[%emt 0:03:26]} dxe5 {[%emt 0:01:07]} 14. Bxe5 {[%emt 0:03:44]} Be6 {[%emt 0:02:06]} 15. Bxe6 {[%emt 0:07:00]} Nxe6 {[%emt 0:00:22]} 16. Nd4 {[%emt 0:00:47]} (16. Ne2 {simplifies} Nd7 17. Bc3 Bf6 18. Bxf6 Nxf6 19. Qxd8 Raxd8 20. Nc3) 16... Bb4 {[%emt 0:14:03]} 17. Nf5 {[%emt 0:04:16][%cal Of5h6]} Nd7 {[%emt 0:06:15][%cal Bf6d7,Bd7b6,Bb6c4,Bc4b2][%mdl 32]} 18. Bg3 {[%emt 0:05:44]} Nb6 {[%emt 0:08:03]} 19. Qg4 {[%emt 0:03:14][%cal Oe1e6]} Qg5 {[%emt 0:02:30]} 20. Red1 {[%emt 0:05:00]} ({White should play} 20. Qf3 $11) 20... Qxg4 $15 {[%emt 0:09:35]} 21. hxg4 {[%emt 0:00:08]} Nc4 {[%emt 0:00:06]} 22. Na2 {[%emt 0:04:22]} Nxb2 {[%emt 0:04:06]} 23. Rdb1 {[%emt 0:01:08]} Nxa4 {[%emt 0:00:23] White must now prevent ...Nc3.} 24. Nxb4 {[%emt 0:00:30]} axb4 {[%emt 0:09:23]} (24... Nc3 $5 25. Nd3 Nxb1 26. Rxb1 a4 $16) 25. Nd6 $1 {[%emt 0:02:03]} Red8 {[%emt 0:11:26] [#] Strongly threatening ...c5.} 26. Rxb4 {[%emt 0:01:12]} Nac5 {[%emt 0:01:06]} 27. Rxa8 {[%emt 0:02:27]} Rxa8 {[%emt 0:00:02]} 28. Nxb7 {[%emt 0:00:53]} Ra1+ {[%emt 0:00:08]} 29. Kh2 {[%emt 0:00:10]} Nxb7 {[%emt 0:01:01]} 30. Rxb7 $11 {[%emt 0:00:41][%mdl 4096] Endgame. KRB-KRN} Ra2 {[%emt 0:00:04]} 31. c3 {[%emt 0:04:44]} Rc2 {[%emt 0:00:34]} 32. f4 {[%emt 0:02:07]} Rxc3 {[%emt 0:00:55]} 33. Rb8+ {[%emt 0:00:17]} Kh7 {[%emt 0:00:08]} 34. Rb7 {[%emt 0:00:24] Inhibits Nc7.} Rc4 {[%emt 0:03:31]} 35. Rxf7 {[%emt 0:01:15]} Kg8 {[%emt 0:06:30]} 36. Rf5 {[%emt 0:01:11]} Rd4 {[%emt 0:08:11]} 37. Ra5 {[%emt 0:02:18]} Nxf4 {[%emt 0:00:12]} 38. Rc5 {[%emt 0:02:09]} Ne2 {[%emt 0:00:36]} 39. Rxc6 {[%emt 0:00:40]} Rxg4 {[%emt 0:00:03]} 40. Be1 {[%emt 0:00:27]} Rg5 {[%emt 0:01:15] [#] ( -> ...Rh5+)} 41. g3 {[%emt 0:00:18]} Nd4 {[%emt 0:00:14]} 42. Rc8+ {[%emt 0:00:09]} Kh7 {[%emt 0:00:04] ...Nf3+ would now be deadly.} 43. Bf2 {[%emt 0:00:25]} Nf3+ {[%emt 0:01:00]} 44. Kg2 {[%emt 0:00:17] The position is equal.} Nh4+ {[%emt 0:00:55]} 45. Kh3 {[%emt 0:00:15]} Ng6 {[%emt 0:00:49]} 46. Rc5 {[%emt 0:00:30]} Ne5 {[%emt 0:02:17]} 47. Be3 {[%emt 0:02:31]} Rh5+ {[%emt 0:02:56]} 48. Kg2 {[%emt 0:00:05] Threatens to win with Bf4.} Kg6 {[%emt 0:00:05]} 49. Bd4 {[%emt 0:00:57]} Kf6 {[%emt 0:01:22]} 50. Rc6+ {[%emt 0:00:18]} Kf7 {[%emt 0:00:12]} 51. Rc7+ {[%emt 0:00:19] Weighted Error Value: White=0.06 (flawless) /Black=0.05 (flawless) .  Mistake:       	White=1     	---        Inaccurate:     	White=1     	Black=2      OK:         	White=22    	Black=23     Best:        	White=4     	Black=1      Strong:       	White=1     	Black=1} 1/2-1/2

[Event "Baku Open 2024"]
[Site "Baku"]
[Date "2024.06.30"]
[Round "2.18"]
[White "Dolgun, Can"]
[Black "Manafov, Vugar"]
[Result "0-1"]
[ECO "B41"]
[WhiteElo "2264"]
[BlackElo "2430"]
[Annotator "RC"]
[PlyCount "85"]
[EventDate "2024.06.29"]
[EventType "swiss"]
[EventCountry "AZE"]
[SourceTitle "playchess.com"]
[Source "ChessBase"]
[SourceQuality "1"]
[TimeControl "5400+30"]

1. e4 {[%emt 0:00:01]} c5 {[%emt 0:00:19]} 2. Nf3 {[%emt 0:00:26]} e6 {[%emt 0:00:17]} 3. d4 {[%emt 0:00:07]} cxd4 {[%emt 0:00:12]} 4. Nxd4 {[%emt 0:00:03]} a6 {[%emt 0:00:15]} 5. c4 {[%emt 0:00:05]} Nf6 {[%emt 0:00:26]} 6. Nc3 {[%emt 0:00:06]} Qc7 {[%emt 0:00:15]} 7. Be2 {[%emt 0:00:18]} b6 {[%emt 0:00:42]} 8. Be3 {[%emt 0:01:46]} Bb7 {[%emt 0:00:29]} 9. f3 {[%emt 0:00:47]} Be7 {[%emt 0:01:26]} 10. Qd2 {[%emt 0:00:51]} d6 {[%emt 0:01:24]} 11. O-O {[%emt 0:02:02]} O-O {[%emt 0:00:49]} 12. Rfc1 {[%emt 0:02:10]} Nbd7 {[%emt 0:01:53]} 13. b4 {[%emt 0:01:44]} Rac8 {[%emt 0:06:08]} 14. Rab1 {[%emt 0:09:09]} Qb8 {[%emt 0:06:46]} 15. a4 {[%emt 0:02:04]} Ne5 {[%emt 0:10:34]} 16. Qa2 {[%emt 0:10:17]} Bd8 {[%emt 0:09:04]} 17. h3 {[%emt 0:05:42]} Re8 {[%emt 0:05:32]} 18. b5 {[%emt 0:12:13]} a5 {[%emt 0:08:43]} 19. f4 {[%emt 0:00:44]} Ned7 {[%emt 0:01:29]} 20. Nc6 {[%emt 0:02:34]} Bxc6 {[%emt 0:00:56]} 21. bxc6 {[%emt 0:00:12]} Rxc6 {[%emt 0:00:53]} 22. Bf3 {[%emt 0:03:03]} e5 {[%emt 0:03:34]} 23. f5 {[%emt 0:01:48]} h6 {[%emt 0:03:00]} 24. h4 {[%emt 0:04:31]} Be7 {[%emt 0:02:48]} 25. g4 {[%emt 0:02:39]} Nh7 {[%emt 0:00:54]} 26. Qh2 {[%emt 0:14:11]} Qd8 {[%emt 0:03:20]} 27. Bf2 {[%emt 0:00:25]} Rxc4 {[%emt 0:00:25]} 28. Be2 {[%emt 0:04:38]} Rc8 {[%emt 0:05:07]} 29. Bb5 {[%emt 0:02:57]} Rf8 {[%emt 0:04:29]} 30. Bxd7 {[%emt 0:05:41]} Qxd7 {[%emt 0:00:34]} 31. Nd5 {[%emt 0:01:56]} Nf6 {[%emt 0:00:34]} 32. Nxb6 {[%emt 0:07:04]} Rxc1+ {[%emt 0:00:20]} 33. Rxc1 {[%emt 0:00:00]} Qb7 {[%emt 0:01:22]} 34. g5 {[%emt 0:00:20]} Nxe4 {[%emt 0:05:40]} 35. Qg2 {[%emt 0:00:22]} hxg5 {[%emt 0:07:25]} 36. hxg5 {[%emt 0:00:23]} d5 {[%emt 0:01:04]} 37. f6 {[%emt 0:01:53]} Bd8 {[%emt 0:03:54]} 38. fxg7 {[%emt 0:01:57]} Kxg7 {[%emt 0:00:11]} 39. Qh2 {[%emt 0:01:06]} Nxf2 {[%emt 0:00:37]} 40. Qxe5+ {[%emt 0:00:55]} Kg8 {[%emt 0:02:45]} 41. Nxd5 {[%emt 0:01:12]} Nd3 {[%emt 0:00:09]} 42. Qe4 {[%emt 0:00:19]} Qa7+ {[%emt 0:00:06]} 43. Kh2 {[%emt 0:01:19]} 0-1

[Event "Baku Open 2024"]
[Site "Baku"]
[Date "2024.06.30"]
[Round "2.19"]
[White "Suyarov, Mukhammadzokhid"]
[Black "Suleimen, Ergali"]
[Result "1/2-1/2"]
[ECO "B52"]
[WhiteElo "2430"]
[BlackElo "2254"]
[Annotator "RC"]
[PlyCount "47"]
[EventDate "2024.06.29"]
[EventType "swiss"]
[EventCountry "AZE"]
[SourceTitle "playchess.com"]
[Source "ChessBase"]
[SourceQuality "1"]
[TimeControl "5400+30"]

1. e4 {[%emt 0:00:15]} c5 {[%emt 0:00:17]} 2. Nf3 {[%emt 0:00:22]} d6 {[%emt 0:00:43]} 3. Bb5+ {[%emt 0:00:51]} Bd7 {[%emt 0:00:46]} 4. Bxd7+ {[%emt 0:00:50]} Qxd7 {[%emt 0:00:17]} 5. c4 {[%emt 0:00:54]} Nf6 {[%emt 0:00:30]} 6. Nc3 {[%emt 0:00:39]} g6 {[%emt 0:00:48]} 7. d4 {[%emt 0:00:53]} cxd4 {[%emt 0:00:16]} 8. Nxd4 {[%emt 0:00:32]} Bg7 {[%emt 0:00:31]} 9. f3 {[%emt 0:00:34]} O-O {[%emt 0:01:00]} 10. Be3 {[%emt 0:00:50]} Nc6 {[%emt 0:02:21]} 11. O-O {[%emt 0:00:29]} a6 {[%emt 0:00:59]} 12. Qd3 {[%emt 0:01:57]} Rfc8 {[%emt 0:03:46]} 13. b3 {[%emt 0:01:47]} b5 {[%emt 0:03:53]} 14. cxb5 {[%emt 0:07:10]} Ne5 {[%emt 0:01:04]} 15. Qd2 {[%emt 0:01:02]} d5 {[%emt 0:00:55]} 16. f4 {[%emt 0:12:58]} Rxc3 {[%emt 0:45:38]} 17. Qxc3 {[%emt 0:10:24]} Nxe4 {[%emt 0:00:54]} 18. Qe1 {[%emt 0:04:16]} Ng4 {[%emt 0:00:14]} 19. Rc1 {[%emt 0:10:14]} axb5 {[%emt 0:01:35]} 20. Nf3 {[%emt 0:01:40]} Rxa2 {[%emt 0:05:45]} 21. h3 {[%emt 0:06:01]} d4 {[%emt 0:05:57]} 22. Bd2 {[%emt 0:05:27]} Nxd2 {[%emt 0:03:06]} 23. Nxd2 {[%emt 0:00:51]} Ne3 {[%emt 0:00:19]} 24. Rf2 {[%emt 0:00:46]} 1/2-1/2

[Event "Baku Open 2024"]
[Site "Baku"]
[Date "2024.06.30"]
[Round "2.20"]
[White "Guliev, Logman"]
[Black "Stribuk, Artiom"]
[Result "0-1"]
[ECO "B67"]
[WhiteElo "2257"]
[BlackElo "2422"]
[Annotator "RC"]
[PlyCount "92"]
[EventDate "2024.06.29"]
[EventType "swiss"]
[EventCountry "AZE"]
[SourceTitle "playchess.com"]
[Source "ChessBase"]
[SourceQuality "1"]
[TimeControl "5400+30"]

1. e4 {[%emt 0:00:30]} c5 {[%emt 0:00:07]} 2. Nf3 {[%emt 0:00:00]} d6 {[%emt 0:00:07]} 3. d4 {[%emt 0:00:00]} cxd4 {[%emt 0:00:05]} 4. Nxd4 {[%emt 0:00:00]} Nf6 {[%emt 0:00:07]} 5. Nc3 {[%emt 0:00:00]} Nc6 {[%emt 0:00:05]} 6. Bg5 {[%emt 0:02:25]} e6 {[%emt 0:00:07]} 7. Qd2 {[%emt 0:00:07]} a6 {[%emt 0:00:04]} 8. O-O-O {[%emt 0:00:17]} Bd7 {[%emt 0:00:09]} 9. f4 {[%emt 0:01:18]} Be7 {[%emt 0:00:06]} 10. Kb1 {[%emt 0:01:00]} h6 {[%emt 0:00:44]} 11. Bxf6 {[%emt 0:01:55]} Bxf6 {[%emt 0:00:04]} 12. Nf3 {[%emt 0:06:12]} Be7 {[%emt 0:00:07]} 13. g4 {[%emt 0:03:37]} Qc7 {[%emt 0:20:36]} 14. h4 {[%emt 0:03:00]} O-O-O {[%emt 0:00:41]} 15. Rh3 {[%emt 0:07:48]} Kb8 {[%emt 0:04:18]} 16. Rg3 {[%emt 0:17:30]} g5 {[%emt 0:23:15]} 17. hxg5 {[%emt 0:03:52]} hxg5 {[%emt 0:00:30]} 18. Nxg5 {[%emt 0:00:26]} Bxg5 {[%emt 0:01:06]} 19. fxg5 {[%emt 0:00:03]} d5 {[%emt 0:11:36]} 20. Qf2 {[%emt 0:12:00]} d4 {[%emt 0:01:07]} 21. Ne2 {[%emt 0:02:58]} Bc8 {[%emt 0:03:53]} 22. Nc1 {[%emt 0:12:35]} Rhg8 {[%emt 0:03:56]} 23. Nd3 {[%emt 0:12:16]} Rxg5 {[%emt 0:09:49]} 24. Rf3 {[%emt 0:00:50]} Rf8 {[%emt 0:00:51]} 25. Qh4 {[%emt 0:01:06]} Rfg8 {[%emt 0:01:29]} 26. Bh3 {[%emt 0:00:17]} e5 {[%emt 0:00:56]} 27. Qf2 {[%emt 0:03:03]} R8g7 {[%emt 0:01:46]} 28. Qd2 {[%emt 0:06:07]} Bxg4 {[%emt 0:03:07]} 29. Bxg4 {[%emt 0:00:04]} Rxg4 {[%emt 0:00:05]} 30. a3 {[%emt 0:00:14]} Ka7 {[%emt 0:01:41]} 31. Re1 {[%emt 0:02:22]} Rg2 {[%emt 0:04:45]} 32. Re2 {[%emt 0:00:16]} Rg1+ {[%emt 0:00:17]} 33. Ka2 {[%emt 0:00:37]} Na5 {[%emt 0:04:07]} 34. Qb4 {[%emt 0:00:56]} Rd1 {[%emt 0:02:00]} 35. Re1 {[%emt 0:01:21]} Rxe1 {[%emt 0:00:32]} 36. Qxe1 {[%emt 0:00:10]} Nc4 {[%emt 0:00:56]} 37. Qb4 {[%emt 0:00:22]} Rg2 {[%emt 0:01:27]} 38. Rf2 {[%emt 0:01:21]} Rxf2 {[%emt 0:00:20]} 39. Nxf2 {[%emt 0:00:02]} Ne3 {[%emt 0:00:16]} 40. c3 {[%emt 0:00:34]} dxc3 {[%emt 0:01:54]} 41. bxc3 {[%emt 0:00:18]} Qc4+ {[%emt 0:00:42]} 42. Qxc4 {[%emt 0:00:46]} Nxc4 {[%emt 0:00:01]} 43. Kb3 {[%emt 0:00:15]} b5 {[%emt 0:01:32]} 44. Ng4 {[%emt 0:01:01]} Kb6 {[%emt 0:00:30]} 45. Nh6 {[%emt 0:00:12]} f6 {[%emt 0:00:12]} 46. Kc2 {[%emt 0:01:27]} Nd6 0-1

[Event "Baku Open 2024"]
[Site "Baku"]
[Date "2024.07.01"]
[Round "3.1"]
[White "Mamedov, Rauf"]
[Black "Mamedov, Edgar"]
[Result "1/2-1/2"]
[ECO "C55"]
[WhiteElo "2651"]
[BlackElo "2410"]
[Annotator "TA"]
[PlyCount "108"]
[EventDate "2024.06.29"]
[EventType "swiss"]
[EventCountry "AZE"]
[SourceTitle "playchess.com"]
[Source "ChessBase"]
[SourceQuality "1"]
[TimeControl "5400+30"]

{[%evp 16,108,15,9,10,14,16,9,20,21,14,-2,6,-6,0,0,0,-4,0,-10,0,-15,-11,-14,-8,-11,-11,-12,-8,-12,0,-4,-4,-4,0,0,0,-15,0,-3,2,-3,-3,-3,0,-3,-3,-3,-3,-3,0,-3,-3,-3,0,-3,-3,-13,-3,-12,-3,-14,0,0,0,0,0,0,0,0,0,0,0,0,0,0,0,0,0,0,0,0,0,0,0,0,0,0,0,0,0,0,0,0,0]} 1. e4 {[%emt 0:00:05]} e5 {[%emt 0:00:17]} 2. Nf3 {[%emt 0:00:06]} Nc6 {[%emt 0:00:09]} 3. Bc4 {[%emt 0:00:06]} Nf6 {[%emt 0:00:34]} 4. d3 {[%emt 0:00:05]} Be7 {[%emt 0:00:35]} 5. Nc3 {[%emt 0:00:05]} O-O {[%emt 0:00:38]} 6. O-O {[%emt 0:00:11]} d6 {[%emt 0:00:19]} 7. a3 {[%emt 0:00:03]} Bg4 {[%emt 0:00:42][%cal Bc8g4,Bg4h5,Bh5g6][%mdl 32]} 8. h3 {[%emt 0:03:43]} Bh5 {[%emt 0:00:14]} 9. Be3 {[%emt 0:03:57] The position is equal.} Kh8 {[%emt 0:01:56]} 10. Nd5 {[%emt 0:09:10]} Nxd5 {[%emt 0:01:21]} 11. Bxd5 {[%emt 0:00:38]} Qc8 {[%emt 0:05:27]} 12. g4 {[%emt 0:26:03]} Bg6 {[%emt 0:00:29]} 13. Kh2 {[%emt 0:00:04]} Nd8 {[%emt 0:12:16]} 14. Rg1 {[%emt 0:00:31]} c6 {[%emt 0:01:14]} 15. Bb3 {[%emt 0:01:37]} f6 {[%emt 0:08:04]} 16. c3 {[%emt 0:17:20]} Bf7 {[%emt 0:05:25]} 17. Bxf7 {[%emt 0:02:06]} Nxf7 {[%emt 0:04:11]} 18. Qb3 {[%emt 0:06:06]} Qd7 {[%emt 0:07:17]} 19. c4 {[%emt 0:00:16]} Ng5 {[%emt 0:11:59]} 20. Nxg5 {[%emt 0:01:54]} fxg5 {[%emt 0:00:06]} 21. Kg2 {[%emt 0:00:37]} h6 {[%emt 0:07:55]} 22. Rgd1 {[%emt 0:03:49]} a5 {[%emt 0:03:14]} 23. a4 {[%emt 0:02:44]} c5 {[%emt 0:01:48]} 24. f3 {[%emt 0:02:33]} Kg8 {[%emt 0:02:58]} 25. Rf1 {[%emt 0:00:56]} Rf7 {[%emt 0:01:24]} 26. Qb5 {[%emt 0:00:40]} Qc6 {[%emt 0:03:35]} 27. Ra3 {[%emt 0:00:59]} Bd8 {[%emt 0:01:18]} 28. Raa1 {[%emt 0:02:03]} Ra6 {[%emt 0:02:23]} 29. Qb3 {[%emt 0:00:22]} Ra8 {[%emt 0:00:32]} 30. Bd2 {[%emt 0:00:49]} Qd7 {[%emt 0:01:12]} 31. Qd1 {[%emt 0:00:37]} Qe6 {[%emt 0:00:43]} 32. Ra3 {[%emt 0:01:00][%cal Ba1a3,Ba3b3,Bb3b5][%mdl 32]} Qd7 {[%emt 0:00:30]} 33. Qe1 {[%emt 0:00:35]} Ra7 {[%emt 0:00:45]} 34. Rb3 {[%emt 0:01:10]} Ra8 {[%emt 0:04:00]} ({Of course not} 34... Qxa4 $6 35. Rb5 Ra6 36. Rf2 $16) 35. Rb5 {[%emt 0:00:24]} b6 {[%emt 0:00:04]} 36. Be3 {[%emt 0:00:48]} Ra7 {[%emt 0:01:33]} 37. Bf2 {[%emt 0:00:13]} Qe6 {[%emt 0:02:00]} 38. Bg3 {[%emt 0:00:09]} Qf6 {[%emt 0:01:14]} 39. Rb3 {[%emt 0:01:07]} Rf8 {[%emt 0:02:05]} 40. Rc3 {[%emt 0:00:16]} Raf7 {[%emt 0:01:08]} 41. Rc2 {[%emt 0:00:22]} Qe6 {[%emt 0:00:55]} 42. Rcf2 {[%emt 0:00:27]} Qd7 {[%emt 0:00:37]} 43. Qd1 {[%emt 0:00:07]} Kh8 {[%emt 0:00:39]} 44. Rh1 {[%emt 0:00:06]} Kg8 {[%emt 0:00:22]} 45. Qb3 {[%emt 0:01:12]} Qc7 {[%emt 0:01:30]} 46. Qb5 {[%emt 0:00:20]} Qb7 {[%emt 0:00:09]} 47. Rff1 {[%emt 0:00:35]} Qc8 {[%emt 0:00:25]} 48. Rf2 {[%emt 0:00:16]} Qb7 {[%emt 0:00:08]} 49. Re1 {[%emt 0:01:03]} Qc8 {[%emt 0:00:17]} 50. Qb3 {[%emt 0:00:21]} Qd7 {[%emt 0:00:14]} 51. Qb5 {[%emt 0:00:09]} Qc8 {[%emt 0:00:08]} 52. Qb3 {[%emt 0:00:05]} Qd7 {[%emt 0:00:08]} 53. Qb5 {[%emt 0:00:04]} Qc8 {[%emt 0:00:06]} 54. Qb3 {[%emt 0:00:03]} Qd7 {[%emt 0:00:08] An uneventful encounter.   Weighted Error Value: White=0.03 (flawless) /Black=0.03 (flawless) .  OK:         	White=16    	Black=8} 1/2-1/2